fUSD/lending_fUSD_20250616
["ID","MTS","AMOUNT","RATE_DAILY","PERIOD"]
[366199722,1750114234530,-490.0,0.00016082,2]
[366199723,1750114234540,-738.84,0.00016082,2]
[366199724,1750114234550,-490.0,0.00016082,2]
[366199725,1750114234564,-490.0,0.00016082,2]
[366199726,1750114234574,-491.07357929,0.00016082,2]
[366199727,1750114234584,-551.73,0.00016082,2]
[366199728,1750114234593,-490.0,0.00016082,2]
[366199729,1750114234603,-1771.84,0.00016082,2]
[366199730,1750114234613,-1247.9,0.00016082,2]
[366199731,1750114234623,-490.0,0.00016082,2]
[366199732,1750114234634,-490.0,0.00016082,2]
[366199733,1750114234644,-490.0,0.00016082,2]
[366199734,1750114234654,-490.0,0.00016082,2]
[366199735,1750114234663,-1665.96,0.00016082,2]
[366199736,1750114234673,-490.0,0.00016082,2]
[366199737,1750114234684,-584.23,0.00016082,2]
[366199738,1750114234693,-1064.35,0.00016082,2]
[366199739,1750114234710,-490.0,0.00016082,2]
[366199740,1750114234720,-490.0,0.00016082,2]
[366199741,1750114234731,-490.0,0.00016082,2]
[366199742,1750114234741,-1000.0,0.00016082,2]
[366199743,1750114234751,-490.0,0.00016082,2]
[366199744,1750114234761,-1695.1817844,0.00016082,2]
[366199745,1750114234779,-356.39,0.00016082,2]
[366199746,1750114234792,-499.4482156,0.00016082,2]
[366199747,1750114234802,-818.48,0.00016082,2]
[366199748,1750114234811,-490.0,0.00016082,2]
[366199749,1750114234821,-123.36628329,0.00016082,2]
[366199750,1750114234834,-366.63371671,0.00016082,2]
[366199751,1750114234844,-196.13046102,0.00016082,2]
[366199752,1750114234862,-675.68953898,0.00016082,2]
[366199753,1750114234872,-490.0,0.00016082,2]
[366199754,1750114234882,-641.59,0.00016082,2]
[366199755,1750114234892,-490.0,0.00016082,2]
[366199756,1750114234902,-490.0,0.00016082,2]
[366199757,1750114234914,-634.06,0.00016082,2]
[366199758,1750114234924,-490.0,0.00016082,2]
[366199759,1750114234934,-490.0,0.00016082,2]
[366199760,1750114234944,-490.0,0.00016082,2]
[366199761,1750114234958,-490.0,0.00016082,2]
[366199762,1750114234969,-490.0,0.00016082,2]
[366199763,1750114234979,-3775.8,0.00016082,2]
[366199764,1750114234990,-490.0,0.00016082,2]
[366199765,1750114235000,-490.0,0.00016082,2]
[366199766,1750114235021,-490.0,0.00016082,2]
[366199767,1750114235033,-492.29,0.00016082,2]
[366199768,1750114235044,-490.0,0.00016082,2]
[366199769,1750114235055,-490.0,0.00016082,2]
[366199770,1750114235065,-490.0,0.00016082,2]
[366199771,1750114235076,-490.0,0.00016082,2]
[366199772,1750114235086,-490.0,0.00016082,2]
[366199773,1750114235096,-490.0,0.00016082,2]
[366199774,1750114235106,-490.0,0.00016082,2]
[366199775,1750114235117,-490.0,0.00016082,2]
[366199776,1750114235127,-967.08,0.00016082,2]
[366199777,1750114235138,-1230.81,0.00016082,2]
[366199778,1750114235148,-598.95,0.00016082,2]
[366199779,1750114235158,-490.0,0.00016082,2]
[366199780,1750114235169,-490.0,0.00016082,2]
[366199781,1750114235178,-836.23,0.00016082,2]
[366199782,1750114235188,-490.0,0.00016082,2]
[366199783,1750114235201,-579.13,0.00016082,2]
[366199784,1750114235211,-490.0,0.00016082,2]
[366199785,1750114235222,-490.0,0.00016082,2]
[366199786,1750114235232,-490.0,0.00016082,2]
[366199787,1750114235242,-490.0,0.00016082,2]
[366199788,1750114235253,-729.0,0.00016082,2]
[366199789,1750114235263,-490.0,0.00016082,2]
[366199790,1750114235273,-490.0,0.00016082,2]
[366199791,1750114235282,-490.0,0.00016082,2]
[366199792,1750114235293,-490.0,0.00016082,2]
[366199793,1750114235303,-490.0,0.00016082,2]
[366199794,1750114235312,-4087.42,0.00016082,2]
[366199795,1750114235323,-591.44,0.00016082,2]
[366199796,1750114235334,-490.0,0.00016082,2]
[366199797,1750114235347,-490.0,0.00016082,2]
[366199798,1750114235357,-490.0,0.00016082,2]
[366199799,1750114235367,-490.0,0.00016082,2]
[366199800,1750114235378,-490.0,0.00016082,2]
[366199801,1750114235388,-729.34,0.00016082,2]
[366199802,1750114235398,-246.20177219,0.00016082,2]
[366199803,1750114235409,-828.39,0.00016082,2]
[366199804,1750114235421,-490.0,0.00016082,2]
[366199805,1750114235431,-490.0,0.00016082,2]
[366199806,1750114235441,-736.8,0.00016082,2]
[366199807,1750114235454,-490.0,0.00016082,2]
[366199808,1750114235470,-495.05,0.00016082,2]
[366199809,1750114235480,-197.50582875,0.00016083,2]
[366199810,1750114235490,-490.0,0.00016083,2]
[366199811,1750114235502,-490.0,0.00016083,2]
[366199812,1750114235512,-490.0,0.00016083,2]
[366199813,1750114235522,-490.0,0.00016083,2]
[366199814,1750114235533,-490.0,0.00016083,2]
[366199815,1750114235544,-490.0,0.00016083,2]
[366199816,1750114235553,-490.0,0.00016083,2]
[366199817,1750114235564,-490.0,0.00016083,2]
[366199818,1750114235575,-490.0,0.00016083,2]
[366199819,1750114235585,-490.0,0.00016083,2]
[366199820,1750114235596,-490.0,0.00016083,2]
[366199821,1750114235606,-490.0,0.00016083,2]
[366199822,1750114235615,-490.0,0.00016083,2]
[366199823,1750114235625,-490.0,0.00016083,2]
[366199824,1750114235634,-499.90610533,0.00016083,2]
[366199825,1750114235644,-490.0,0.00016083,2]
[366199826,1750114235654,-391.65241084,0.00016083,2]
[366199827,1750114235664,-490.0,0.00016083,2]
[366199828,1750114235674,-490.0,0.00016083,2]
[366199829,1750114235683,-490.0,0.00016083,2]
[366199830,1750114235693,-535.17,0.00016083,2]
[366199831,1750114235707,-490.0,0.00016083,2]
[366199832,1750114235717,-490.0,0.00016083,2]
[366199833,1750114235727,-490.0,0.00016083,2]
[366199834,1750114235737,-490.0,0.00016083,2]
[366199835,1750114235746,-490.0,0.00016083,2]
[366199836,1750114235757,-490.0,0.00016083,2]
[366199837,1750114235767,-490.0,0.00016083,2]
[366199838,1750114235776,-490.0,0.00016083,2]
[366199839,1750114235787,-490.0,0.00016083,2]
[366199840,1750114235796,-490.0,0.00016083,2]
[366199841,1750114235807,-490.0,0.00016083,2]
[366199842,1750114235817,-490.0,0.00016083,2]
[366199843,1750114235826,-490.0,0.00016083,2]
[366199844,1750114235836,-260.10540588,0.00016083,2]
[366199845,1750114235846,-490.0,0.00016083,2]
[366199846,1750114235855,-490.0,0.00016083,2]
[366199847,1750114235865,-490.0,0.00016083,2]
[366199848,1750114235875,-490.0,0.00016083,2]
[366199849,1750114235885,-490.0,0.00016083,2]
[366199850,1750114235895,-434.98597344,0.00016083,2]
[366199851,1750114235910,-490.0,0.00016083,2]
[366199852,1750114235920,-490.0,0.00016083,2]
[366199853,1750114235930,-490.0,0.00016083,2]
[366199854,1750114235940,-490.0,0.00016083,2]
[366199855,1750114235953,-156.55935743,0.00016097,2]
[366199856,1750114235964,-2105.41764886,0.00016099,2]
[366199857,1750114235976,-44180.13774288,0.000161,2]
[366199858,1750114235992,-2881.4109848,0.000161,2]
[366199859,1750114236004,-2938.45127232,0.000161,2]
[366199860,1750114236014,-159.48396607,0.000161,2]
[366199861,1750114236024,-809.95748113,0.000161,2]
[366199862,1750114236034,-809.95748097,0.000161,2]
[366199863,1750114236045,-809.95748097,0.000161,2]
[366199864,1750114236055,-809.95748097,0.000161,2]
[366199865,1750114236066,-809.95748097,0.000161,2]
[366199866,1750114236075,-809.95748097,0.000161,2]
[366199867,1750114236085,-1876.6193735,0.000161,2]
[366199868,1750114236094,-809.95748097,0.00016107,2]
[366199869,1750114236104,-152.0,0.00016115,3]
[366199870,1750114236113,-582.0,0.00016135,2]
[366199871,1750114236124,-434.0,0.00016141,2]
[366199872,1750114236134,-809.95748097,0.00016141,2]
[366199873,1750114236144,-5000.0,0.00016147,2]
[366199874,1750114236155,-156.55935743,0.00016154,2]
[366199875,1750114236164,-1753.27265996,0.00016154,2]
[366199876,1750114236174,-423.51242789,0.00016164,2]
[366199877,1750114236184,-809.95748097,0.00016176,2]
[366199878,1750114236194,-833.8156298,0.00016181,2]
[366199879,1750114236209,-2000.0,0.00016196,2]
[366199880,1750114236219,-2400.66798434,0.000162,2]
[366199895,1750114238167,-533.53389404,0.0001576,2]
[366199897,1750114238177,-151.0,0.00015988,2]
[366199898,1750114238187,-330.12890595,0.00016081,2]
[366199915,1750114238344,-159.87109405,0.00016081,2]
[366199917,1750114238355,-490.0,0.00016081,2]
[366199919,1750114238365,-162.627984,0.00016081,2]
[366199922,1750114238375,-490.0,0.00016081,2]
[366199924,1750114238386,-19430.91939434,0.000162,2]
[366199926,1750114238398,-2027.1952,0.000162,2]
[366199931,1750114238465,-790.11199992,0.000162,2]
[366199932,1750114238478,-1910.99923358,0.000162,2]
[366199968,1750114239879,-490.0,0.00016081,2]
[366199969,1750114239890,-10.0,0.000162,2]
[366199970,1750114239939,-490.0,0.00016082,2]
[366199971,1750114239950,-728.87362446,0.000162,2]
[366199972,1750114240006,-534.53864969,0.000162,2]
[366199973,1750114240019,-1729.85740307,0.000162,2]
[366199974,1750114240032,-14446.875,0.000162,2]
[366199975,1750114240045,-5989.9615106,0.000162,2]
[366199976,1750114240055,-354.78,0.000162,2]
[366199977,1750114240065,-461.62,0.000162,2]
[366199978,1750114240075,-354.78,0.000162,2]
[366199979,1750114240086,-461.62,0.000162,2]
[366199980,1750114240096,-461.62,0.000162,2]
[366199981,1750114240107,-354.78,0.000162,2]
[366199982,1750114240117,-797.51,0.000162,2]
[366199983,1750114240127,-354.78,0.000162,2]
[366199984,1750114240138,-1876.6193735,0.000162,2]
[366199985,1750114240149,-809.95748097,0.0001621,2]
[366199986,1750114240160,-156.55935743,0.00016212,2]
[366199987,1750114240171,-8769.33454754,0.00016212,2]
[366199988,1750114240181,-891.0,0.00016216,2]
[366199989,1750114240192,-1681.0,0.00016222,2]
[366199990,1750114240205,-513.69,0.00016237,2]
[366199991,1750114240215,-1010.78,0.00016244,2]
[366199992,1750114240225,-809.95748097,0.00016245,2]
[366199993,1750114240235,-566.43008295,0.00016246,2]
[366199994,1750114240245,-490.0,0.00016246,2]
[366199995,1750114240255,-490.0,0.00016246,2]
[366199996,1750114240265,-490.0,0.00016246,2]
[366199997,1750114240275,-490.0,0.00016246,2]
[366199998,1750114240286,-981.1,0.00016246,2]
[366199999,1750114240296,-490.0,0.00016246,2]
[366200000,1750114240306,-686.76,0.00016246,2]
[366200001,1750114240315,-1369.72,0.00016246,2]
[366200002,1750114240325,-490.0,0.00016246,2]
[366200003,1750114240340,-242.62,0.00016246,2]
[366200004,1750114240350,-490.0,0.00016246,2]
[366200005,1750114240360,-1538.06,0.00016246,2]
[366200006,1750114240371,-461.61,0.00016246,2]
[366200007,1750114240382,-490.0,0.00016246,2]
[366200008,1750114240393,-301.53,0.00016246,2]
[366200009,1750114240403,-490.0,0.00016246,2]
[366200010,1750114240412,-490.0,0.00016246,2]
[366200011,1750114240423,-490.0,0.00016246,2]
[366200012,1750114240433,-490.0,0.00016246,2]
[366200013,1750114240442,-490.0,0.00016246,2]
[366200014,1750114240455,-996.47,0.00016246,2]
[366200015,1750114240464,-490.0,0.00016246,2]
[366200016,1750114240474,-490.0,0.00016246,2]
[366200017,1750114240483,-1278.98,0.00016246,2]
[366200018,1750114240492,-490.0,0.00016246,2]
[366200019,1750114240502,-490.0,0.00016246,2]
[366200020,1750114240512,-490.0,0.00016246,2]
[366200021,1750114240522,-490.0,0.00016246,2]
[366200022,1750114240532,-490.0,0.00016246,2]
[366200023,1750114240542,-490.0,0.00016246,2]
[366200024,1750114240556,-315.46349846,0.00016247,2]
[366200025,1750114240566,-490.0,0.00016247,2]
[366200026,1750114240576,-490.0,0.00016247,2]
[366200027,1750114240586,-490.0,0.00016247,2]
[366200028,1750114240597,-490.0,0.00016247,2]
[366200029,1750114240606,-490.0,0.00016247,2]
[366200030,1750114240616,-490.0,0.00016247,2]
[366200031,1750114240626,-490.0,0.00016247,2]
[366200033,1750114240637,-490.0,0.00016247,2]
[366200034,1750114240647,-490.0,0.00016247,2]
[366200035,1750114240657,-315.84773566,0.00016247,2]
[366200036,1750114240667,-490.0,0.00016247,2]
[366200037,1750114240677,-490.0,0.00016247,2]
[366200038,1750114240687,-490.0,0.00016247,2]
[366200039,1750114240697,-490.0,0.00016247,2]
[366200040,1750114240708,-490.0,0.00016247,2]
[366200041,1750114240718,-490.0,0.00016247,2]
[366200042,1750114240728,-490.0,0.00016247,2]
[366200043,1750114240738,-490.0,0.00016247,2]
[366200044,1750114240748,-490.0,0.00016247,2]
[366200045,1750114240758,-490.0,0.00016247,2]
[366200046,1750114240768,-490.0,0.00016247,2]
[366200047,1750114240778,-520.81,0.00016247,2]
[366200048,1750114240788,-490.0,0.00016247,2]
[366200049,1750114240799,-490.0,0.00016247,2]
[366200050,1750114240809,-490.0,0.00016247,2]
[366200051,1750114240819,-490.0,0.00016247,2]
[366200052,1750114240829,-490.0,0.00016247,2]
[366200053,1750114240839,-490.0,0.00016247,2]
[366200054,1750114240850,-490.0,0.00016247,2]
[366200055,1750114240860,-490.0,0.00016247,2]
[366200056,1750114240870,-490.0,0.00016247,2]
[366200057,1750114241268,-490.0,0.00016247,2]
[366200058,1750114241303,-490.0,0.00016247,2]
[366200059,1750114241314,-490.0,0.00016247,2]
[366200060,1750114241324,-517.07,0.00016247,2]
[366200061,1750114241336,-490.0,0.00016247,2]
[366200062,1750114241348,-490.0,0.00016247,2]
[366200063,1750114241358,-490.0,0.00016247,2]
[366200064,1750114241367,-490.0,0.00016247,2]
[366200065,1750114241377,-1687.37,0.00016247,2]
[366200066,1750114241386,-4478.01,0.00016247,2]
[366200067,1750114241397,-659.58,0.00016247,2]
[366200068,1750114241407,-490.0,0.00016247,2]
[366200069,1750114241418,-490.0,0.00016247,2]
[366200070,1750114241429,-490.0,0.00016247,2]
[366200071,1750114241439,-1699.08,0.00016247,2]
[366200072,1750114241450,-692.68,0.00016247,2]
[366200073,1750114241465,-490.0,0.00016247,2]
[366200074,1750114241475,-745.97,0.00016247,2]
[366200075,1750114241484,-490.0,0.00016247,2]
[366200076,1750114241494,-645.37,0.00016247,2]
[366200077,1750114241504,-457.27175101,0.00016247,2]
[366200078,1750114241513,-490.0,0.00016247,2]
[366200079,1750114241523,-1307.87,0.00016247,2]
[366200080,1750114241532,-584.9725198,0.00016247,2]
[366200081,1750114241542,-490.0,0.00016247,2]
[366200082,1750114241551,-490.0,0.00016247,2]
[366200083,1750114241560,-609.8209593,0.00016247,2]
[366200084,1750114241570,-490.0,0.00016247,2]
[366200085,1750114241579,-545.55,0.00016247,2]
[366200086,1750114241588,-490.0,0.00016247,2]
[366200087,1750114241598,-787.51,0.00016247,2]
[366200088,1750114241608,-490.0,0.00016247,2]
[366200089,1750114241618,-490.0,0.00016247,2]
[366200090,1750114241628,-1361.65,0.00016247,2]
[366200091,1750114241638,-490.0,0.00016247,2]
[366200092,1750114241647,-662.96,0.00016247,2]
[366200093,1750114241657,-589.78,0.00016247,2]
[366200094,1750114241667,-490.0,0.00016247,2]
[366200095,1750114241677,-738.84,0.00016247,2]
[366200096,1750114241686,-568.15,0.00016247,2]
[366200097,1750114241695,-551.73,0.00016247,2]
[366200098,1750114241707,-1771.84,0.00016247,2]
[366200099,1750114241716,-1247.9,0.00016247,2]
[366200100,1750114241726,-490.0,0.00016247,2]
[366200101,1750114241735,-490.0,0.00016247,2]
[366200102,1750114241744,-1665.96,0.00016247,2]
[366200103,1750114241754,-490.0,0.00016247,2]
[366200104,1750114241773,-584.23,0.00016247,2]
[366200105,1750114241783,-1064.35,0.00016247,2]
[366200106,1750114241792,-490.0,0.00016247,2]
[366200107,1750114241802,-361.99279615,0.00016247,2]
[366200108,1750114241813,-490.0,0.00016247,2]
[366200109,1750114241825,-2551.02,0.00016247,2]
[366200110,1750114241837,-818.48,0.00016247,2]
[366200111,1750114241847,-490.0,0.00016247,2]
[366200112,1750114241858,-490.0,0.00016247,2]
[366200113,1750114241868,-871.82,0.00016247,2]
[366200114,1750114241878,-490.0,0.00016247,2]
[366200115,1750114241888,-641.59,0.00016247,2]
[366200116,1750114241898,-490.0,0.00016247,2]
[366200117,1750114241908,-490.0,0.00016247,2]
[366200118,1750114241918,-490.0,0.00016247,2]
[366200119,1750114241927,-490.0,0.00016247,2]
[366200120,1750114241937,-490.0,0.00016247,2]
[366200121,1750114241946,-3775.8,0.00016247,2]
[366200122,1750114241959,-629.77450457,0.00016247,2]
[366200123,1750114241969,-490.0,0.00016247,2]
[366200124,1750114241979,-490.0,0.00016247,2]
[366200125,1750114241989,-492.29,0.00016247,2]
[366200126,1750114241998,-490.0,0.00016247,2]
[366200127,1750114242008,-490.0,0.00016247,2]
[366200128,1750114242018,-490.0,0.00016247,2]
[366200129,1750114242029,-490.0,0.00016247,2]
[366200130,1750114242039,-490.0,0.00016247,2]
[366200131,1750114242049,-490.0,0.00016247,2]
[366200132,1750114242059,-490.0,0.00016247,2]
[366200133,1750114242069,-490.0,0.00016247,2]
[366200134,1750114242079,-967.08,0.00016247,2]
[366200135,1750114242090,-252.72921214,0.00016247,2]
[366200136,1750114242105,-866.38249894,0.00016247,2]
[366200137,1750114242122,-111.69828892,0.00016247,2]
[366200138,1750114242132,-598.95,0.00016247,2]
[366200139,1750114242142,-490.0,0.00016247,2]
[366200140,1750114242153,-197.60450204,0.00016247,2]
[366200141,1750114242163,-836.23,0.00016247,2]
[366200142,1750114242173,-490.0,0.00016247,2]
[366200143,1750114242183,-579.13,0.00016247,2]
[366200144,1750114242194,-490.0,0.00016247,2]
[366200145,1750114242203,-490.0,0.00016247,2]
[366200146,1750114242215,-520.68549278,0.00016247,2]
[366200147,1750114242225,-490.0,0.00016247,2]
[366200148,1750114242235,-729.0,0.00016247,2]
[366200149,1750114242245,-490.0,0.00016247,2]
[366200150,1750114242255,-490.0,0.00016247,2]
[366200151,1750114242266,-490.0,0.00016247,2]
[366200152,1750114242276,-490.0,0.00016247,2]
[366200153,1750114242285,-490.0,0.00016247,2]
[366200154,1750114242295,-4087.42,0.00016247,2]
[366200155,1750114242306,-425.45473514,0.00016247,2]
[366200156,1750114242316,-490.0,0.00016247,2]
[366200157,1750114242327,-490.0,0.00016247,2]
[366200158,1750114242340,-584.6140884,0.00016247,2]
[366200159,1750114242351,-729.34,0.00016247,2]
[366200160,1750114242361,-828.39,0.00016247,2]
[366200161,1750114242371,-490.0,0.00016247,2]
[366200162,1750114242382,-736.8,0.00016247,2]
[366200163,1750114242391,-490.0,0.00016247,2]
[366200164,1750114242402,-495.05,0.00016247,2]
[366200165,1750114242412,-490.0,0.00016248,2]
[366200166,1750114242423,-490.0,0.00016248,2]
[366200167,1750114242432,-490.0,0.00016248,2]
[366200168,1750114242442,-490.0,0.00016248,2]
[366200169,1750114242452,-535.17,0.00016248,2]
[366200170,1750114242466,-490.0,0.00016248,2]
[366200171,1750114242475,-490.0,0.00016248,2]
[366200172,1750114242486,-490.0,0.00016248,2]
[366200173,1750114242495,-490.0,0.00016248,2]
[366200174,1750114242505,-490.0,0.00016248,2]
[366200175,1750114242515,-490.0,0.00016248,2]
[366200176,1750114242526,-490.0,0.00016248,2]
[366200177,1750114242537,-490.0,0.00016248,2]
[366200178,1750114242546,-536.20812983,0.00016248,2]
[366200179,1750114242556,-490.0,0.00016248,2]
[366200181,1750114242566,-490.0,0.00016248,2]
[366200182,1750114242575,-490.0,0.00016248,2]
[366200183,1750114242585,-490.0,0.00016248,2]
[366200185,1750114242594,-490.0,0.00016248,2]
[366200186,1750114242603,-490.0,0.00016248,2]
[366200187,1750114242614,-490.0,0.00016248,2]
[366200188,1750114242623,-490.0,0.00016248,2]
[366200189,1750114242633,-490.0,0.00016248,2]
[366200191,1750114242643,-490.0,0.00016248,2]
[366200193,1750114242652,-490.0,0.00016248,2]
[366200195,1750114242662,-14176.59400753,0.00016263,2]
[366200197,1750114242672,-156.55935743,0.00016269,2]
[366200198,1750114242681,-150.0,0.00016273,2]
[366200199,1750114242691,-150.0,0.00016273,2]
[366200200,1750114242701,-500.0,0.00016273,2]
[366200201,1750114242714,-150.0,0.00016273,2]
[366200203,1750114242724,-150.0,0.00016273,2]
[366200204,1750114242734,-150.0,0.00016273,2]
[366200205,1750114242743,-150.0,0.00016273,2]
[366200207,1750114242753,-150.0,0.00016273,2]
[366200209,1750114242763,-500.0,0.00016273,2]
[366200210,1750114242773,-150.0,0.00016273,2]
[366200214,1750114242782,-500.0,0.00016273,2]
[366200215,1750114242792,-216.97321949,0.00016273,2]
[366200216,1750114242802,-500.0,0.00016273,2]
[366200217,1750114242812,-809.95748097,0.00016279,2]
[366200218,1750114242822,-8720.04742573,0.00016296,2]
[366200219,1750114242831,-2338.23,0.000163,2]
[366200220,1750114242841,-50000.0,0.000163,2]
[366200221,1750114242851,-1876.6193735,0.000163,2]
[366200222,1750114242861,-150.0,0.000163,2]
[366200223,1750114242871,-150.0,0.000163,2]
[366200224,1750114242882,-500.0,0.000163,2]
[366200225,1750114242892,-150.0,0.000163,2]
[366200226,1750114242902,-150.0,0.000163,2]
[366200227,1750114242912,-150.0,0.000163,2]
[366200228,1750114242922,-150.0,0.000163,2]
[366200229,1750114242932,-500.0,0.000163,2]
[366200230,1750114242942,-500.0,0.000163,2]
[366200231,1750114242951,-500.0,0.000163,2]
[366200232,1750114242963,-1845.0,0.00016302,2]
[366200233,1750114242974,-216.65458595,0.00016311,2]
[366200234,1750114242984,-809.95748097,0.00016314,2]
[366200235,1750114242994,-5082.7877449,0.0001632,2]
[366200236,1750114243004,-156.55935743,0.00016326,2]
[366200237,1750114243014,-150.0,0.00016328,2]
[366200238,1750114243025,-150.0,0.00016328,2]
[366200239,1750114243035,-500.0,0.00016328,2]
[366200240,1750114243046,-150.0,0.00016328,2]
[366200241,1750114243057,-150.0,0.00016328,2]
[366200242,1750114243067,-150.0,0.00016328,2]
[366200243,1750114243077,-500.0,0.00016328,2]
[366200244,1750114243087,-500.0,0.00016328,2]
[366200245,1750114243097,-500.0,0.00016328,2]
[366200246,1750114243108,-809.95748097,0.00016348,2]
[366200247,1750114243118,-150.0,0.00016355,2]
[366200248,1750114243128,-200.0,0.00016355,2]
[366200249,1750114243138,-497.0,0.00016355,2]
[366200250,1750114243149,-200.0,0.00016355,2]
[366200251,1750114243160,-150.0,0.00016355,2]
[366200252,1750114243170,-150.0,0.00016355,2]
[366200253,1750114243180,-500.0,0.00016355,2]
[366200254,1750114243191,-500.0,0.00016355,2]
[366200255,1750114243202,-159.48396607,0.00016367,2]
[366200256,1750114243218,-250.0,0.00016383,2]
[366200257,1750114243229,-150.0,0.00016383,2]
[366200259,1750114243240,-150.0,0.00016383,2]
[366200260,1750114243250,-266.81966861,0.00016383,2]
[366200262,1750114243261,-500.0,0.00016383,2]
[366200264,1750114243271,-809.95748097,0.00016383,2]
[366200267,1750114243282,-156.55935743,0.00016384,2]
[366200270,1750114243293,-1010.78,0.00016399,2]
[366200273,1750114243304,-50000.0,0.000164,2]
[366200276,1750114243314,-156.82,0.000164,2]
[366200279,1750114243325,-1876.6193735,0.000164,2]
[366200282,1750114243336,-250.0,0.0001641,2]
[366200285,1750114243349,-250.0,0.0001641,2]
[366200287,1750114243360,-490.0,0.0001641,2]
[366200289,1750114243370,-490.0,0.0001641,2]
[366200291,1750114243381,-490.0,0.0001641,2]
[366200293,1750114243392,-490.0,0.0001641,2]
[366200295,1750114243402,-981.1,0.0001641,2]
[366200297,1750114243413,-490.0,0.0001641,2]
[366200299,1750114243424,-686.76,0.0001641,2]
[366200301,1750114243435,-1369.72,0.0001641,2]
[366200303,1750114243445,-490.0,0.0001641,2]
[366200306,1750114243459,-490.0,0.0001641,2]
[366200308,1750114243470,-1538.06,0.0001641,2]
[366200310,1750114243481,-490.0,0.0001641,2]
[366200312,1750114243493,-357.71202536,0.0001641,2]
[366200314,1750114243505,-490.0,0.0001641,2]
[366200316,1750114243516,-490.0,0.0001641,2]
[366200318,1750114243526,-490.0,0.0001641,2]
[366200320,1750114243536,-490.0,0.0001641,2]
[366200322,1750114243547,-996.47,0.0001641,2]
[366200324,1750114243557,-490.0,0.0001641,2]
[366200326,1750114243567,-490.0,0.0001641,2]
[366200328,1750114243578,-1278.98,0.0001641,2]
[366200330,1750114243588,-490.0,0.0001641,2]
[366200332,1750114243599,-490.0,0.0001641,2]
[366200334,1750114243608,-490.0,0.0001641,2]
[366200336,1750114243618,-279.89441576,0.0001641,2]
[366200338,1750114243629,-490.0,0.0001641,2]
[366200340,1750114243639,-296.34,0.0001641,2]
[366200342,1750114243649,-490.0,0.00016411,2]
[366200344,1750114243659,-490.0,0.00016411,2]
[366200346,1750114243670,-490.0,0.00016411,2]
[366200348,1750114243680,-490.0,0.00016411,2]
[366200350,1750114243690,-490.0,0.00016411,2]
[366200352,1750114243700,-490.0,0.00016411,2]
[366200354,1750114243714,-490.0,0.00016411,2]
[366200356,1750114243724,-490.0,0.00016411,2]
[366200357,1750114243734,-490.0,0.00016411,2]
[366200359,1750114243744,-490.0,0.00016411,2]
[366200362,1750114243754,-490.0,0.00016411,2]
[366200363,1750114243764,-490.0,0.00016411,2]
[366200366,1750114243775,-490.0,0.00016411,2]
[366200368,1750114243788,-490.0,0.00016411,2]
[366200370,1750114243798,-490.0,0.00016411,2]